[Event "Titled Tuesday Blitz June 27 Early 2023"]
[White "Sanhueza, Cristian"]
[Black "TimGrutter03"]
[WhiteFideId "116815"]
[WhiteElo "2465"]
[BlackElo "2631"]
[Result "1-0"]
[Round "3"]
[TimeControl "180+2"]
[Date "2023.06.27"]
[WhiteClock "0:00:09"]
[BlackClock "0:00:03"]
[Board "121"]

1. e4 {[%clk 0:03:00]}  c6 {[%clk 0:02:59]} 2. d4 {[%clk 0:03:00]}  d5 {[%clk 0:02:59]} 3. exd5 {[%clk 0:03:01]}  cxd5 {[%clk 0:02:59]} 4. c4 {[%clk 0:03:02]}  Nf6 {[%clk 0:02:58]} 5. Nc3 {[%clk 0:03:03]}  g6 {[%clk 0:02:57]} 6. Qb3 {[%clk 0:03:02]}  Bg7 {[%clk 0:02:57]} 7. cxd5 {[%clk 0:03:03]}  O-O {[%clk 0:02:57]} 8. Be2 {[%clk 0:03:03]}  e6 {[%clk 0:02:57]} 9. Bf3 {[%clk 0:02:58]}  Nxd5 {[%clk 0:02:52]} 10. Nxd5 {[%clk 0:02:58]}  exd5 {[%clk 0:02:52]} 11. Bxd5 {[%clk 0:02:50]}  Nc6 {[%clk 0:02:22]} 12. Nf3 {[%clk 0:02:46]}  Na5 {[%clk 0:02:10]} 13. Qb5 {[%clk 0:01:26]}  a6 {[%clk 0:02:10]} 14. Qc5 {[%clk 0:01:27]}  b6 {[%clk 0:01:57]} 15. Qxf8+ {[%clk 0:01:26]}  Qxf8 {[%clk 0:01:57]} 16. Bxa8 {[%clk 0:01:27]}  Bg4 {[%clk 0:01:44]} 17. Bd5 {[%clk 0:01:21]}  Qb4+ {[%clk 0:01:24]} 18. Bd2 {[%clk 0:01:21]}  Qxb2 {[%clk 0:01:25]} 19. O-O {[%clk 0:01:21]}  Bxf3 {[%clk 0:01:24]} 20. Bxf3 {[%clk 0:01:01]}  Qxd2 {[%clk 0:01:23]} 21. Rad1 {[%clk 0:01:01]}  Qf4 {[%clk 0:01:10]} 22. d5 {[%clk 0:01:00]}  Be5 {[%clk 0:01:09]} 23. Rfe1 {[%clk 0:00:57]}  Qxh2+ {[%clk 0:00:59]} 24. Kf1 {[%clk 0:00:57]}  Bd6 {[%clk 0:00:56]} 25. g3 {[%clk 0:00:53]}  Nc4 {[%clk 0:00:44]} 26. Bg2 {[%clk 0:00:52]}  Kg7 {[%clk 0:00:39]} 27. Re4 {[%clk 0:00:44]}  Qh5 {[%clk 0:00:25]} 28. g4 {[%clk 0:00:39]}  Qh4 {[%clk 0:00:18]} 29. Rxc4 {[%clk 0:00:37]}  Bc5 {[%clk 0:00:19]} 30. Rxc5 {[%clk 0:00:20]}  bxc5 {[%clk 0:00:19]} 31. d6 {[%clk 0:00:21]}  Qxg4 {[%clk 0:00:19]} 32. Ke1 {[%clk 0:00:21]}  Qxg2 {[%clk 0:00:05]} 33. d7 {[%clk 0:00:21]}  Qh1+ {[%clk 0:00:06]} 34. Ke2 {[%clk 0:00:15]}  Qe4+ {[%clk 0:00:06]} 35. Kf1 {[%clk 0:00:13]}  Qh1+ {[%clk 0:00:06]} 36. Ke2 {[%clk 0:00:14]}  Qh5+ {[%clk 0:00:05]} 37. Kd2 {[%clk 0:00:11]}  Qg5+ {[%clk 0:00:06]} 38. Kc2 {[%clk 0:00:09]}  Qd8 {[%clk 0:00:06]} 39. Kc3 {[%clk 0:00:09]}  Kf6 {[%clk 0:00:06]} 40. Kc4 {[%clk 0:00:09]}  Ke6 {[%clk 0:00:06]} 41. Kxc5 {[%clk 0:00:10]}  h5 {[%clk 0:00:04]} 42. Kc6 {[%clk 0:00:09]}  h4 {[%clk 0:00:03]} 43. Re1+ {[%clk 0:00:09]}  Kf6 {[%clk 0:00:03]} 44. Re8 {[%clk 0:00:10]}  Qa5 {[%clk 0:00:01]} 45. d8=Q+ {[%clk 0:00:10]}  Qxd8 {[%clk 0:00:01]} 46. Rxd8 {[%clk 0:00:11]}  g5 {[%clk 0:00:01]} 47. Kd5 {[%clk 0:00:09]}  Kf5 {[%clk 0:00:02]} 48. Ra8 {[%clk 0:00:07]}  h3 {[%clk 0:00:02]} 49. Rxa6 {[%clk 0:00:07]}  g4 {[%clk 0:00:01]} 50. Rh6 {[%clk 0:00:07]}  Kf4 {[%clk 0:00:02]} 51. a4 {[%clk 0:00:05]}  Kf3 {[%clk 0:00:02]} 52. a5 {[%clk 0:00:06]}  Kxf2 {[%clk 0:00:03]} 53. a6 {[%clk 0:00:06]}  g3 {[%clk 0:00:03]} 54. Rxh3 {[%clk 0:00:06]}  g2 {[%clk 0:00:04]} 55. Rh2 {[%clk 0:00:07]}  Kf1 {[%clk 0:00:03]} 56. Rxg2 {[%clk 0:00:08]}  Kxg2 {[%clk 0:00:04]} 57. a7 {[%clk 0:00:08]}  f5 {[%clk 0:00:04]} 58. a8=Q {[%clk 0:00:09]}  f4 {[%clk 0:00:04]} 59. Ke4 {[%clk 0:00:10]}  Kg3 {[%clk 0:00:03]} 60. Qa3+ {[%clk 0:00:09]} 1-0


[Site "https://www.chess.com"]

[Event "Titled Tuesday Blitz June 27 Early 2023"]
[White "Ahmad, Khagan"]
[Black "Reprintsev, Alexander"]
[WhiteFideId "13431552"]
[BlackFideId "14100541"]
[WhiteElo "2623"]
[BlackElo "2461"]
[Result "1-0"]
[Round "3"]
[TimeControl "180+2"]
[Date "2023.06.27"]
[WhiteClock "0:00:04"]
[BlackClock "0:00:08"]
[Board "122"]

1. e4 {[%clk 0:02:56]}  e5 {[%clk 0:02:59]} 2. Nf3 {[%clk 0:02:55]}  Nc6 {[%clk 0:02:59]} 3. Bb5 {[%clk 0:02:54]}  Bc5 {[%clk 0:02:58]} 4. c3 {[%clk 0:02:54]}  f5 {[%clk 0:02:58]} 5. d4 {[%clk 0:02:43]}  fxe4 {[%clk 0:02:56]} 6. Bxc6 {[%clk 0:02:35]}  dxc6 {[%clk 0:02:26]} 7. Nxe5 {[%clk 0:02:30]}  Bd6 {[%clk 0:02:01]} 8. Qh5+ {[%clk 0:02:06]}  g6 {[%clk 0:02:00]} 9. Nxg6 {[%clk 0:02:05]}  Nf6 {[%clk 0:01:59]} 10. Qh4 {[%clk 0:01:58]}  Rg8 {[%clk 0:01:54]} 11. Ne5 {[%clk 0:01:57]}  Bxe5 {[%clk 0:01:10]} 12. dxe5 {[%clk 0:01:55]}  Bg4 {[%clk 0:01:04]} 13. O-O {[%clk 0:01:30]}  Nh5 {[%clk 0:00:58]} 14. Qxd8+ {[%clk 0:01:20]}  Rxd8 {[%clk 0:00:58]} 15. Be3 {[%clk 0:01:17]}  Bh3 {[%clk 0:00:55]} 16. g3 {[%clk 0:01:09]}  Bxf1 {[%clk 0:00:54]} 17. Kxf1 {[%clk 0:01:10]}  Rd1+ {[%clk 0:00:54]} 18. Ke2 {[%clk 0:01:10]}  Rh1 {[%clk 0:00:53]} 19. Kd2 {[%clk 0:00:42]}  Rxh2 {[%clk 0:00:46]} 20. Na3 {[%clk 0:00:42]}  Nxg3 {[%clk 0:00:45]} 21. Rg1 {[%clk 0:00:41]}  Rg6 {[%clk 0:00:41]} 22. Nc2 {[%clk 0:00:19]}  Nf5 {[%clk 0:00:40]} 23. Re1 {[%clk 0:00:20]}  Nxe3 {[%clk 0:00:40]} 24. Kxe3 {[%clk 0:00:20]}  Rg5 {[%clk 0:00:33]} 25. Kxe4 {[%clk 0:00:20]}  Rxf2 {[%clk 0:00:32]} 26. Nd4 {[%clk 0:00:20]}  Rxb2 {[%clk 0:00:29]} 27. Rh1 {[%clk 0:00:16]}  h5 {[%clk 0:00:29]} 28. Rf1 {[%clk 0:00:16]}  h4 {[%clk 0:00:22]} 29. Ne6 {[%clk 0:00:13]}  Rg4+ {[%clk 0:00:19]} 30. Kf5 {[%clk 0:00:12]}  Rg8 {[%clk 0:00:19]} 31. Kf6 {[%clk 0:00:09]}  h3 {[%clk 0:00:17]} 32. Ng7+ {[%clk 0:00:09]}  Kd7 {[%clk 0:00:16]} 33. e6+ {[%clk 0:00:08]}  Kc8 {[%clk 0:00:16]} 34. e7 {[%clk 0:00:08]}  Re2 {[%clk 0:00:16]} 35. Nf5 {[%clk 0:00:02]}  h2 {[%clk 0:00:14]} 36. Rh1 {[%clk 0:00:01]}  Kd7 {[%clk 0:00:10]} 37. Kf7 {[%clk 0:00:02]}  Rh8 {[%clk 0:00:10]} 38. Rd1+ {[%clk 0:00:02]}  Kc8 {[%clk 0:00:10]} 39. Rh1 {[%clk 0:00:02]}  Rh7+ {[%clk 0:00:09]} 40. Kf6 {[%clk 0:00:02]}  Rhxe7 {[%clk 0:00:09]} 41. Nxe7+ {[%clk 0:00:02]}  Kd7 {[%clk 0:00:09]} 42. Nf5 {[%clk 0:00:03]}  Rxa2 {[%clk 0:00:10]} 43. Rd1+ {[%clk 0:00:03]}  Ke8 {[%clk 0:00:09]} 44. Ng7+ {[%clk 0:00:03]}  Kf8 {[%clk 0:00:08]} 45. Rd8# {[%clk 0:00:04]} 1-0


[Site "https://www.chess.com"]

[Event "Titled Tuesday Blitz June 27 Early 2023"]
[White "Boraso, Alessio"]
[Black "Komov, Roman"]
[WhiteFideId "848077"]
[BlackFideId "24175714"]
[WhiteElo "2459"]
[BlackElo "2620"]
[Result "1-0"]
[Round "3"]
[TimeControl "180+2"]
[Date "2023.06.27"]
[WhiteClock "0:00:08"]
[BlackClock "0:00:10"]
[Board "124"]

1. e4 {[%clk 0:03:00]}  c5 {[%clk 0:02:59]} 2. c3 {[%clk 0:02:59]}  Nf6 {[%clk 0:02:58]} 3. e5 {[%clk 0:02:59]}  Nd5 {[%clk 0:02:58]} 4. Nf3 {[%clk 0:03:00]}  Nc6 {[%clk 0:02:58]} 5. d4 {[%clk 0:03:01]}  cxd4 {[%clk 0:02:59]} 6. cxd4 {[%clk 0:03:02]}  d6 {[%clk 0:02:59]} 7. Bc4 {[%clk 0:03:02]}  Nb6 {[%clk 0:03:00]} 8. Bb5 {[%clk 0:03:02]}  dxe5 {[%clk 0:02:59]} 9. Nxe5 {[%clk 0:03:02]}  Bd7 {[%clk 0:02:59]} 10. Nxd7 {[%clk 0:03:03]}  Qxd7 {[%clk 0:03:00]} 11. Nc3 {[%clk 0:03:03]}  e6 {[%clk 0:03:00]} 12. O-O {[%clk 0:03:04]}  Rd8 {[%clk 0:03:01]} 13. Be3 {[%clk 0:03:01]}  a6 {[%clk 0:02:46]} 14. Bxc6 {[%clk 0:02:51]}  Qxc6 {[%clk 0:02:47]} 15. Rc1 {[%clk 0:02:52]}  Qd7 {[%clk 0:02:38]} 16. Qg4 {[%clk 0:02:51]}  f5 {[%clk 0:02:38]} 17. Qg3 {[%clk 0:02:48]}  Bd6 {[%clk 0:02:35]} 18. Qf3 {[%clk 0:02:41]}  O-O {[%clk 0:02:32]} 19. d5 {[%clk 0:02:38]}  Nxd5 {[%clk 0:02:14]} 20. Nxd5 {[%clk 0:02:38]}  exd5 {[%clk 0:02:15]} 21. Qxd5+ {[%clk 0:02:38]}  Kh8 {[%clk 0:02:16]} 22. Qf3 {[%clk 0:02:25]}  Qf7 {[%clk 0:02:08]} 23. Rfd1 {[%clk 0:02:20]}  Bb8 {[%clk 0:01:52]} 24. b3 {[%clk 0:02:06]}  Rfe8 {[%clk 0:01:45]} 25. Bf4 {[%clk 0:01:55]}  Rxd1+ {[%clk 0:01:16]} 26. Rxd1 {[%clk 0:01:56]}  Ba7 {[%clk 0:01:13]} 27. g3 {[%clk 0:01:43]}  h6 {[%clk 0:01:12]} 28. Qd5 {[%clk 0:01:36]}  Qh5 {[%clk 0:00:39]} 29. Rd3 {[%clk 0:01:13]}  Bxf2+ {[%clk 0:00:13]} 30. Kg2 {[%clk 0:00:58]}  Re2 {[%clk 0:00:07]} 31. Rd2 {[%clk 0:00:21]}  Rxd2 {[%clk 0:00:05]} 32. Qxd2 {[%clk 0:00:21]}  Ba7 {[%clk 0:00:05]} 33. h4 {[%clk 0:00:15]}  Qf7 {[%clk 0:00:06]} 34. Qd8+ {[%clk 0:00:11]}  Kh7 {[%clk 0:00:06]} 35. Qd3 {[%clk 0:00:12]}  Qe6 {[%clk 0:00:06]} 36. Kf3 {[%clk 0:00:05]}  Qc6+ {[%clk 0:00:06]} 37. Ke2 {[%clk 0:00:05]}  Qg2+ {[%clk 0:00:06]} 38. Kd1 {[%clk 0:00:05]}  Qh1+ {[%clk 0:00:05]} 39. Kc2 {[%clk 0:00:05]}  Qc6+ {[%clk 0:00:05]} 40. Kd1 {[%clk 0:00:06]}  Qe6 {[%clk 0:00:06]} 41. g4 {[%clk 0:00:05]}  Qe4 {[%clk 0:00:05]} 42. Qxe4 {[%clk 0:00:03]}  fxe4 {[%clk 0:00:05]} 43. Ke2 {[%clk 0:00:04]}  Kg6 {[%clk 0:00:04]} 44. Be3 {[%clk 0:00:04]}  Bb8 {[%clk 0:00:04]} 45. Bd4 {[%clk 0:00:02]}  h5 {[%clk 0:00:03]} 46. gxh5+ {[%clk 0:00:03]}  Kxh5 {[%clk 0:00:04]} 47. Bxg7 {[%clk 0:00:03]}  Bf4 {[%clk 0:00:03]} 48. Bf6 {[%clk 0:00:04]}  b5 {[%clk 0:00:04]} 49. a4 {[%clk 0:00:03]}  Kg4 {[%clk 0:00:04]} 50. Bd8 {[%clk 0:00:03]}  Bh6 {[%clk 0:00:04]} 51. Be7 {[%clk 0:00:03]}  Kf5 {[%clk 0:00:04]} 52. Bd8 {[%clk 0:00:03]}  Bf8 {[%clk 0:00:03]} 53. Bb6 {[%clk 0:00:02]}  Bh6 {[%clk 0:00:02]} 54. Bf2 {[%clk 0:00:02]}  Kg4 {[%clk 0:00:02]} 55. Be1 {[%clk 0:00:03]}  Bg7 {[%clk 0:00:02]} 56. axb5 {[%clk 0:00:03]}  axb5 {[%clk 0:00:03]} 57. Bf2 {[%clk 0:00:04]}  Bf6 {[%clk 0:00:03]} 58. Be1 {[%clk 0:00:05]}  Kf5 {[%clk 0:00:03]} 59. Bf2 {[%clk 0:00:04]}  Kg4 {[%clk 0:00:03]} 60. Ke3 {[%clk 0:00:03]}  Be7 {[%clk 0:00:01]} 61. Kxe4 {[%clk 0:00:03]}  Kh5 {[%clk 0:00:02]} 62. Kd5 {[%clk 0:00:03]}  b4 {[%clk 0:00:02]} 63. Kc4 {[%clk 0:00:03]}  Bf8 {[%clk 0:00:02]} 64. Bc5 {[%clk 0:00:04]}  Bg7 {[%clk 0:00:03]} 65. Bxb4 {[%clk 0:00:04]}  Kxh4 {[%clk 0:00:03]} 66. Bd6 {[%clk 0:00:04]}  Bh6 {[%clk 0:00:02]} 67. b4 {[%clk 0:00:05]}  Be3 {[%clk 0:00:03]} 68. Bc5 {[%clk 0:00:05]}  Bf4 {[%clk 0:00:03]} 69. b5 {[%clk 0:00:06]}  Kg5 {[%clk 0:00:04]} 70. Kd5 {[%clk 0:00:06]}  Kf6 {[%clk 0:00:04]} 71. Bd6 {[%clk 0:00:07]}  Be3 {[%clk 0:00:04]} 72. Bc5 {[%clk 0:00:07]}  Bf4 {[%clk 0:00:04]} 73. b6 {[%clk 0:00:07]}  Kf7 {[%clk 0:00:03]} 74. Bd6 {[%clk 0:00:07]}  Be3 {[%clk 0:00:03]} 75. Bc5 {[%clk 0:00:07]}  Bf4 {[%clk 0:00:03]} 76. Bd6 {[%clk 0:00:08]}  Be3 {[%clk 0:00:04]} 77. b7 {[%clk 0:00:09]}  Ba7 {[%clk 0:00:04]} 78. Kc6 {[%clk 0:00:08]}  Ke6 {[%clk 0:00:05]} 79. Bc7 {[%clk 0:00:09]}  Ke7 {[%clk 0:00:05]} 80. Bb6 {[%clk 0:00:07]}  Bb8 {[%clk 0:00:05]} 81. Bc7 {[%clk 0:00:08]}  Ba7 {[%clk 0:00:06]} 82. Bf4 {[%clk 0:00:08]}  Ke6 {[%clk 0:00:05]} 83. Kc7 {[%clk 0:00:06]}  Kd5 {[%clk 0:00:05]} 84. Bg3 {[%clk 0:00:03]}  Ke6 {[%clk 0:00:03]} 85. Kc8 {[%clk 0:00:03]}  Kd5 {[%clk 0:00:03]} 86. Bb8 {[%clk 0:00:04]}  Bb6 {[%clk 0:00:02]} 87. Bc7 {[%clk 0:00:03]}  Ba7 {[%clk 0:00:03]} 88. Bb6 {[%clk 0:00:04]}  Bxb6 {[%clk 0:00:03]} 89. b8=Q {[%clk 0:00:04]}  Bc5 {[%clk 0:00:04]} 90. Qb7+ {[%clk 0:00:04]}  Kc4 {[%clk 0:00:05]} 91. Kd7 {[%clk 0:00:05]}  Bd4 {[%clk 0:00:06]} 92. Qc6+ {[%clk 0:00:06]}  Kd3 {[%clk 0:00:07]} 93. Ke6 {[%clk 0:00:07]}  Bc3 {[%clk 0:00:07]} 94. Kd5 {[%clk 0:00:07]}  Kc2 {[%clk 0:00:08]} 95. Qc4 {[%clk 0:00:07]}  Kb2 {[%clk 0:00:09]} 96. Ke4 {[%clk 0:00:08]}  Bd2 {[%clk 0:00:09]} 97. Kd3 {[%clk 0:00:08]}  Bc1 {[%clk 0:00:10]} 98. Qb4+ {[%clk 0:00:08]}  Ka2 {[%clk 0:00:09]} 99. Kc2 {[%clk 0:00:08]}  Ba3 {[%clk 0:00:10]} 100. Qb1# {[%clk 0:00:08]} 1-0


[Site "https://www.chess.com"]

[Event "Titled Tuesday Blitz June 27 Early 2023"]
[White "Gnechko, Ruslan"]
[Black "Aldokhin, Ivan"]
[WhiteFideId "14135868"]
[BlackFideId "24115720"]
[WhiteElo "2458"]
[BlackElo "2619"]
[Result "0-1"]
[Round "3"]
[TimeControl "180+2"]
[Date "2023.06.27"]
[WhiteClock "0:01:03"]
[BlackClock "0:01:15"]
[Board "125"]

1. d4 {[%clk 0:03:00]}  Nf6 {[%clk 0:02:56]} 2. c4 {[%clk 0:03:00]}  g6 {[%clk 0:02:56]} 3. Nf3 {[%clk 0:02:59]}  Bg7 {[%clk 0:02:56]} 4. g3 {[%clk 0:02:59]}  d6 {[%clk 0:02:57]} 5. Bg2 {[%clk 0:02:59]}  O-O {[%clk 0:02:57]} 6. O-O {[%clk 0:03:00]}  Nbd7 {[%clk 0:02:58]} 7. Nc3 {[%clk 0:03:00]}  e5 {[%clk 0:02:58]} 8. Qc2 {[%clk 0:02:54]}  exd4 {[%clk 0:02:58]} 9. Nxd4 {[%clk 0:02:55]}  Re8 {[%clk 0:02:59]} 10. Rd1 {[%clk 0:02:54]}  a6 {[%clk 0:02:59]} 11. h3 {[%clk 0:02:53]}  Rb8 {[%clk 0:02:59]} 12. a4 {[%clk 0:02:51]}  Ne5 {[%clk 0:02:48]} 13. b3 {[%clk 0:02:50]}  Qe7 {[%clk 0:02:44]} 14. Bg5 {[%clk 0:02:50]}  c6 {[%clk 0:02:35]} 15. Ne4 {[%clk 0:02:38]}  Ned7 {[%clk 0:02:13]} 16. Rac1 {[%clk 0:02:21]}  h6 {[%clk 0:02:08]} 17. Nxf6+ {[%clk 0:02:21]}  Nxf6 {[%clk 0:02:07]} 18. Bf4 {[%clk 0:02:18]}  Nh5 {[%clk 0:01:53]} 19. Be3 {[%clk 0:01:58]}  Nxg3 {[%clk 0:01:48]} 20. Bxc6 {[%clk 0:01:48]}  Bxd4 {[%clk 0:01:25]} 21. Bxe8 {[%clk 0:01:33]}  Bxe3 {[%clk 0:01:22]} 22. Bxf7+ {[%clk 0:01:33]}  Kxf7 {[%clk 0:01:18]} 23. fxe3 {[%clk 0:01:18]}  Qxe3+ {[%clk 0:01:17]} 24. Kg2 {[%clk 0:01:18]}  Bf5 {[%clk 0:01:17]} 25. Qd2 {[%clk 0:01:03]}  Be4+ {[%clk 0:01:15]} 0-1


[Site "https://www.chess.com"]

[Event "Titled Tuesday Blitz June 27 Early 2023"]
[White "Lopez Gracia, Fernando"]
[Black "Chen, Justin"]
[WhiteFideId "2207184"]
[BlackFideId "2098199"]
[WhiteElo "2453"]
[BlackElo "2616"]
[Result "0-1"]
[Round "3"]
[TimeControl "180+2"]
[Date "2023.06.27"]
[WhiteClock "0:01:11"]
[BlackClock "0:00:07"]
[Board "127"]

1. c4 {[%clk 0:02:59]}  e5 {[%clk 0:02:41]} 2. Nc3 {[%clk 0:02:59]}  Nf6 {[%clk 0:02:42]} 3. Nf3 {[%clk 0:02:59]}  e4 {[%clk 0:02:41]} 4. Ng5 {[%clk 0:02:59]}  c6 {[%clk 0:02:42]} 5. Ngxe4 {[%clk 0:02:58]}  Nxe4 {[%clk 0:02:43]} 6. Nxe4 {[%clk 0:02:59]}  d5 {[%clk 0:02:44]} 7. cxd5 {[%clk 0:02:54]}  cxd5 {[%clk 0:02:44]} 8. Ng3 {[%clk 0:02:54]}  h5 {[%clk 0:02:45]} 9. e3 {[%clk 0:02:40]}  h4 {[%clk 0:02:45]} 10. Nh5 {[%clk 0:02:41]}  Nc6 {[%clk 0:01:58]} 11. d4 {[%clk 0:02:40]}  Qg5 {[%clk 0:01:20]} 12. Nf4 {[%clk 0:02:36]}  Bd6 {[%clk 0:01:20]} 13. h3 {[%clk 0:02:19]}  Bxf4 {[%clk 0:01:02]} 14. exf4 {[%clk 0:02:20]}  Qg6 {[%clk 0:01:02]} 15. Be3 {[%clk 0:02:12]}  Bf5 {[%clk 0:01:00]} 16. Bb5 {[%clk 0:02:10]}  Qxg2 {[%clk 0:00:55]} 17. Kd2 {[%clk 0:02:03]}  Qe4 {[%clk 0:00:39]} 18. Rc1 {[%clk 0:01:53]}  O-O {[%clk 0:00:27]} 19. Qh5 {[%clk 0:01:45]}  Nxd4 {[%clk 0:00:24]} 20. Be2 {[%clk 0:01:32]}  Nxe2 {[%clk 0:00:17]} 21. Kxe2 {[%clk 0:01:33]}  d4 {[%clk 0:00:17]} 22. Rc5 {[%clk 0:01:29]}  Bg6 {[%clk 0:00:08]} 23. Qf3 {[%clk 0:01:11]}  d3+ {[%clk 0:00:07]} 0-1


[Site "https://www.chess.com"]

[Event "Titled Tuesday Blitz June 27 Early 2023"]
[White "Yeritsyan, Hayk"]
[Black "Yurovskykh, Oleksandr"]
[WhiteFideId "13307320"]
[BlackFideId "14134020"]
[WhiteElo "2449"]
[BlackElo "2613"]
[Result "1-0"]
[Round "3"]
[TimeControl "180+2"]
[Date "2023.06.27"]
[WhiteClock "0:01:23"]
[BlackClock "0:00:21"]
[Board "130"]

1. d4 {[%clk 0:03:00]}  d5 {[%clk 0:02:52]} 2. Nf3 {[%clk 0:03:00]}  Nf6 {[%clk 0:02:51]} 3. e3 {[%clk 0:02:59]}  Bf5 {[%clk 0:02:50]} 4. Bd3 {[%clk 0:02:59]}  Bxd3 {[%clk 0:02:50]} 5. Qxd3 {[%clk 0:03:00]}  c6 {[%clk 0:02:49]} 6. Nbd2 {[%clk 0:02:59]}  e6 {[%clk 0:02:48]} 7. c3 {[%clk 0:03:00]}  Qb6 {[%clk 0:02:46]} 8. e4 {[%clk 0:03:00]}  dxe4 {[%clk 0:02:45]} 9. Nxe4 {[%clk 0:03:01]}  Nbd7 {[%clk 0:02:44]} 10. O-O {[%clk 0:03:01]}  Be7 {[%clk 0:02:44]} 11. Nxf6+ {[%clk 0:02:58]}  Nxf6 {[%clk 0:02:43]} 12. Qc2 {[%clk 0:02:59]}  O-O {[%clk 0:02:41]} 13. Qb3 {[%clk 0:03:00]}  Qxb3 {[%clk 0:02:36]} 14. axb3 {[%clk 0:03:00]}  a6 {[%clk 0:02:36]} 15. b4 {[%clk 0:02:59]}  Rad8 {[%clk 0:02:35]} 16. Bg5 {[%clk 0:02:58]}  Nd5 {[%clk 0:02:31]} 17. Bxe7 {[%clk 0:02:56]}  Nxe7 {[%clk 0:02:32]} 18. Rfe1 {[%clk 0:02:56]}  Ng6 {[%clk 0:02:21]} 19. Ne5 {[%clk 0:02:54]}  Nxe5 {[%clk 0:02:20]} 20. Rxe5 {[%clk 0:02:55]}  Rd6 {[%clk 0:02:20]} 21. Rae1 {[%clk 0:02:54]}  Rfd8 {[%clk 0:02:20]} 22. f4 {[%clk 0:02:54]}  g6 {[%clk 0:02:20]} 23. Kf2 {[%clk 0:02:54]}  h5 {[%clk 0:02:20]} 24. g3 {[%clk 0:02:52]}  Kg7 {[%clk 0:02:20]} 25. Kf3 {[%clk 0:02:52]}  Kf6 {[%clk 0:02:20]} 26. h3 {[%clk 0:02:52]}  Rd5 {[%clk 0:02:21]} 27. Rxd5 {[%clk 0:02:52]}  cxd5 {[%clk 0:02:19]} 28. Rh1 {[%clk 0:02:49]}  Rh8 {[%clk 0:02:19]} 29. Kg2 {[%clk 0:02:48]}  g5 {[%clk 0:02:12]} 30. fxg5+ {[%clk 0:02:47]}  Kxg5 {[%clk 0:02:12]} 31. Re1 {[%clk 0:02:45]}  Kf5 {[%clk 0:02:09]} 32. Kf3 {[%clk 0:02:45]}  Kf6 {[%clk 0:02:01]} 33. Kf4 {[%clk 0:02:43]}  Rh7 {[%clk 0:02:00]} 34. b3 {[%clk 0:02:39]}  Rh8 {[%clk 0:01:44]} 35. c4 {[%clk 0:02:39]}  Rd8 {[%clk 0:01:44]} 36. c5 {[%clk 0:02:35]}  Ra8 {[%clk 0:01:37]} 37. Ra1 {[%clk 0:02:33]}  Re8 {[%clk 0:01:29]} 38. b5 {[%clk 0:02:15]}  axb5 {[%clk 0:01:29]} 39. Ra5 {[%clk 0:02:14]}  Rc8 {[%clk 0:01:28]} 40. Rxb5 {[%clk 0:02:14]}  Rc7 {[%clk 0:01:28]} 41. Rb6 {[%clk 0:02:14]}  Re7 {[%clk 0:01:25]} 42. b4 {[%clk 0:02:14]}  Rc7 {[%clk 0:01:24]} 43. b5 {[%clk 0:02:14]}  Rd7 {[%clk 0:01:23]} 44. g4 {[%clk 0:02:09]}  hxg4 {[%clk 0:01:23]} 45. hxg4 {[%clk 0:02:10]}  Rc7 {[%clk 0:01:23]} 46. g5+ {[%clk 0:02:08]}  Kg6 {[%clk 0:01:18]} 47. Ke5 {[%clk 0:02:08]}  Rd7 {[%clk 0:01:15]} 48. c6 {[%clk 0:02:08]}  bxc6 {[%clk 0:01:16]} 49. bxc6 {[%clk 0:02:09]}  Ra7 {[%clk 0:01:14]} 50. Rb7 {[%clk 0:02:08]}  Ra6 {[%clk 0:01:12]} 51. Kd6 {[%clk 0:02:02]}  e5 {[%clk 0:00:43]} 52. Kxd5 {[%clk 0:01:47]}  Ra5+ {[%clk 0:00:43]} 53. Kd6 {[%clk 0:01:28]}  exd4 {[%clk 0:00:26]} 54. c7 {[%clk 0:01:26]}  Ra8 {[%clk 0:00:26]} 55. Rb8 {[%clk 0:01:23]}  Ra6+ {[%clk 0:00:25]} 56. Kd5 {[%clk 0:01:23]}  Ra5+ {[%clk 0:00:20]} 57. Kxd4 {[%clk 0:01:23]}  Ra4+ {[%clk 0:00:20]} 58. Kc5 {[%clk 0:01:22]}  Ra1 {[%clk 0:00:20]} 59. c8=Q {[%clk 0:01:22]}  Rc1+ {[%clk 0:00:20]} 60. Kd4 {[%clk 0:01:22]}  Rxc8 {[%clk 0:00:21]} 61. Rxc8 {[%clk 0:01:23]}  Kxg5 {[%clk 0:00:22]} 62. Ke3 {[%clk 0:01:23]}  Kf5 {[%clk 0:00:21]} 63. Kf3 {[%clk 0:01:23]} 1-0


[Site "https://www.chess.com"]

[Event "Titled Tuesday Blitz June 27 Early 2023"]
[White "Pandey Srishti"]
[Black "Colas, Joshua"]
[WhiteFideId "35093290"]
[BlackFideId "2044447"]
[WhiteElo "2439"]
[BlackElo "2606"]
[Result "0-1"]
[Round "3"]
[TimeControl "180+2"]
[Date "2023.06.27"]
[WhiteClock "0:00:00"]
[BlackClock "0:00:08"]
[Board "135"]

1. e4 {[%clk 0:03:00]}  c5 {[%clk 0:02:57]} 2. Nf3 {[%clk 0:03:00]}  d6 {[%clk 0:02:55]} 3. d4 {[%clk 0:02:59]}  cxd4 {[%clk 0:02:56]} 4. Nxd4 {[%clk 0:03:00]}  Nf6 {[%clk 0:02:57]} 5. Nc3 {[%clk 0:03:00]}  g6 {[%clk 0:02:57]} 6. Be3 {[%clk 0:02:57]}  Bg7 {[%clk 0:02:53]} 7. f3 {[%clk 0:02:57]}  O-O {[%clk 0:02:52]} 8. Qd2 {[%clk 0:02:57]}  Nc6 {[%clk 0:02:51]} 9. O-O-O {[%clk 0:02:56]}  d5 {[%clk 0:02:51]} 10. exd5 {[%clk 0:02:55]}  Nxd5 {[%clk 0:02:51]} 11. Nxc6 {[%clk 0:02:55]}  bxc6 {[%clk 0:02:52]} 12. Bd4 {[%clk 0:02:56]}  e5 {[%clk 0:02:52]} 13. Bc5 {[%clk 0:02:56]}  Re8 {[%clk 0:02:53]} 14. Ne4 {[%clk 0:02:56]}  Be6 {[%clk 0:02:49]} 15. h4 {[%clk 0:02:52]}  h6 {[%clk 0:02:20]} 16. Bc4 {[%clk 0:02:43]}  Qc7 {[%clk 0:02:14]} 17. h5 {[%clk 0:02:05]}  g5 {[%clk 0:02:09]} 18. g4 {[%clk 0:01:40]}  Rad8 {[%clk 0:02:07]} 19. Qf2 {[%clk 0:01:34]}  Nf4 {[%clk 0:01:47]} 20. Bxe6 {[%clk 0:01:28]}  Nxe6 {[%clk 0:01:48]} 21. Bxa7 {[%clk 0:01:22]}  Nd4 {[%clk 0:01:36]} 22. Bxd4 {[%clk 0:01:11]}  exd4 {[%clk 0:01:36]} 23. a3 {[%clk 0:01:06]}  Qf4+ {[%clk 0:01:35]} 24. Rd2 {[%clk 0:00:52]}  c5 {[%clk 0:01:26]} 25. Ng3 {[%clk 0:00:48]}  d3 {[%clk 0:01:21]} 26. c3 {[%clk 0:00:30]}  c4 {[%clk 0:01:13]} 27. Re1 {[%clk 0:00:25]}  Rxe1+ {[%clk 0:01:06]} 28. Qxe1 {[%clk 0:00:26]}  Qxf3 {[%clk 0:01:07]} 29. Nf5 {[%clk 0:00:26]}  Qxg4 {[%clk 0:01:07]} 30. Nxg7 {[%clk 0:00:22]}  Kxg7 {[%clk 0:01:08]} 31. Qe5+ {[%clk 0:00:22]}  Kg8 {[%clk 0:01:08]} 32. Qf6 {[%clk 0:00:20]}  Qe6 {[%clk 0:01:04]} 33. Qxd8+ {[%clk 0:00:18]}  Kg7 {[%clk 0:01:04]} 34. Qd4+ {[%clk 0:00:17]}  Kh7 {[%clk 0:01:05]} 35. Qf2 {[%clk 0:00:16]}  f5 {[%clk 0:01:04]} 36. Rd1 {[%clk 0:00:16]}  f4 {[%clk 0:00:56]} 37. Re1 {[%clk 0:00:16]}  Qf7 {[%clk 0:00:57]} 38. Qf3 {[%clk 0:00:15]}  Kg7 {[%clk 0:00:54]} 39. Re5 {[%clk 0:00:14]}  Qd7 {[%clk 0:00:53]} 40. Kd2 {[%clk 0:00:14]}  Qa7 {[%clk 0:00:50]} 41. Kc1 {[%clk 0:00:12]}  Qg1+ {[%clk 0:00:49]} 42. Qd1 {[%clk 0:00:12]}  Qg2 {[%clk 0:00:42]} 43. Kb1 {[%clk 0:00:11]}  f3 {[%clk 0:00:36]} 44. Qa4 {[%clk 0:00:08]}  Qc2+ {[%clk 0:00:25]} 45. Qxc2 {[%clk 0:00:08]}  dxc2+ {[%clk 0:00:26]} 46. Kxc2 {[%clk 0:00:08]}  Kf6 {[%clk 0:00:23]} 47. Re1 {[%clk 0:00:08]}  Kf5 {[%clk 0:00:13]} 48. Kd2 {[%clk 0:00:08]}  Kf4 {[%clk 0:00:13]} 49. Rf1 {[%clk 0:00:07]}  g4 {[%clk 0:00:14]} 50. a4 {[%clk 0:00:07]}  g3 {[%clk 0:00:14]} 51. a5 {[%clk 0:00:07]}  g2 {[%clk 0:00:14]} 52. Ke1 {[%clk 0:00:05]}  Kg3 {[%clk 0:00:06]} 53. a6 {[%clk 0:00:01]}  f2+ {[%clk 0:00:06]} 54. Ke2 {[%clk 0:00:01]}  g1=Q {[%clk 0:00:07]} 55. a7 {[%clk 0:00:00]}  Qg2 {[%clk 0:00:08]} 0-1


[Site "https://www.chess.com"]